fUSD/lending_fUSD_20240319
["ID","MTS","AMOUNT","RATE_DAILY","PERIOD"]
[319597815,1710885107366,-2820.33,0.0003178,2]
[319597816,1710885107394,-1302.7,0.0003178,2]
[319597817,1710885107405,-500.0,0.0003178,2]
[319597818,1710885107415,-500.0,0.0003178,2]
[319597819,1710885107426,-2171.52,0.0003178,2]
[319597820,1710885107437,-4792.93,0.0003178,2]
[319597821,1710885107448,-1199.36,0.0003178,2]
[319597822,1710885107459,-500.0,0.0003178,2]
[319597823,1710885107472,-500.0,0.0003178,2]
[319597824,1710885107483,-2181.61,0.0003178,2]
[319597825,1710885107493,-500.0,0.0003178,2]
[319597826,1710885107505,-500.0,0.0003178,2]
[319597827,1710885107516,-500.0,0.0003178,2]
[319597828,1710885107527,-500.0,0.0003178,2]
[319597829,1710885107538,-501.95,0.0003178,2]
[319597830,1710885107549,-1621.75,0.0003178,2]
[319597831,1710885107560,-589.7,0.0003178,2]
[319597832,1710885107570,-500.0,0.0003178,2]
[319597833,1710885107581,-855.86,0.0003178,2]
[319597834,1710885107592,-3227.64,0.0003178,2]
[319597835,1710885107604,-500.0,0.0003178,2]
[319597836,1710885107615,-644.67592,0.0003178,2]
[319597837,1710885107630,-863.41,0.0003178,2]
[319597838,1710885107640,-2111.52,0.0003178,2]
[319597839,1710885107652,-2950.43,0.0003178,2]
[319597840,1710885107663,-500.0,0.0003178,2]
[319597841,1710885107674,-500.0,0.0003178,2]
[319597842,1710885107685,-5122.72,0.0003178,2]
[319597843,1710885107695,-500.0,0.0003178,2]
[319597844,1710885107705,-824.14,0.0003178,2]
[319597845,1710885107716,-10026.4,0.0003178,2]
[319597846,1710885107726,-500.0,0.0003178,2]
[319597847,1710885107736,-500.0,0.0003178,2]
[319597848,1710885107747,-500.0,0.0003178,2]
[319597849,1710885107757,-2275.12,0.0003178,2]
[319597850,1710885107767,-500.0,0.0003178,2]
[319597851,1710885107779,-565.71,0.0003178,2]
[319597852,1710885107789,-1033.05,0.0003178,2]
[319597853,1710885107802,-126732.2,0.0003178,2]
[319597854,1710885107813,-504.07,0.0003178,2]
[319597855,1710885107823,-500.0,0.0003178,2]
[319597856,1710885107834,-500.0,0.0003178,2]
[319597857,1710885107844,-4852.56,0.0003178,2]
[319597858,1710885107855,-500.0,0.0003178,2]
[319597859,1710885107866,-2937.74,0.0003178,2]
[319597860,1710885107877,-1976.68,0.0003178,2]
[319597861,1710885107889,-777.71,0.0003178,2]
[319597862,1710885107899,-1133.54,0.0003178,2]
[319597863,1710885107910,-500.0,0.0003178,2]
[319597864,1710885107920,-2119.46,0.0003178,2]
[319597865,1710885107932,-7711.4,0.0003178,2]
[319597866,1710885107942,-524.36,0.0003178,2]
[319597867,1710885107953,-500.0,0.0003178,2]
[319597868,1710885107963,-7310.51,0.0003178,2]
[319597869,1710885107973,-14442.37,0.0003178,2]
[319597870,1710885107983,-500.0,0.0003178,2]
[319597871,1710885107994,-500.0,0.0003178,2]
[319597872,1710885108003,-500.0,0.0003178,2]
[319597873,1710885108013,-5376.56,0.0003178,2]
[319597874,1710885108023,-4230.03,0.0003178,2]
[319597875,1710885108033,-582.24,0.0003178,2]
[319597876,1710885108043,-751.89,0.0003178,2]
[319597877,1710885108053,-542.91,0.0003178,2]
[319597878,1710885108064,-354.44390852,0.0003178,2]
[319597879,1710885108074,-500.0,0.0003178,2]
[319597880,1710885108084,-500.0,0.0003178,2]
[319597881,1710885108381,-1949.45,0.0003178,2]
[319597882,1710885108393,-5623.75,0.0003178,2]
[319597883,1710885108404,-636.0,0.0003178,2]
[319597884,1710885108414,-1033.59,0.0003178,2]
[319597885,1710885108424,-500.0,0.0003178,2]
[319597886,1710885108433,-5877.04,0.0003178,2]
[319597887,1710885108443,-825.5,0.0003178,2]
[319597888,1710885108453,-521.04,0.0003178,2]
[319597889,1710885108467,-503.31,0.0003178,2]
[319597890,1710885108477,-3068.4,0.0003178,2]
[319597891,1710885108487,-500.0,0.0003178,2]
[319597892,1710885108497,-2857.27,0.0003178,2]
[319597893,1710885108508,-500.0,0.0003178,2]
[319597894,1710885108517,-631.3,0.0003178,2]
[319597895,1710885108527,-814.62,0.0003178,2]
[319597896,1710885108536,-500.0,0.0003178,2]
[319597897,1710885108548,-2550.99,0.0003178,2]
[319597898,1710885108558,-500.0,0.0003178,2]
[319597899,1710885108568,-1149.73,0.0003178,2]
[319597900,1710885108577,-7487.75,0.0003178,2]
[319597901,1710885108587,-1638.18,0.0003178,2]
[319597902,1710885108596,-7814.4,0.0003178,2]
[319597903,1710885108606,-529.96,0.0003178,2]
[319597904,1710885108615,-705.8,0.0003178,2]
[319597905,1710885108625,-500.0,0.0003178,2]
[319597906,1710885108635,-594.04,0.0003178,2]
[319597907,1710885108644,-500.0,0.0003178,2]
[319597908,1710885108653,-500.0,0.0003178,2]
[319597909,1710885108663,-390.40202327,0.0003178,2]
[319597910,1710885108672,-500.0,0.0003178,2]
[319597911,1710885108682,-3016.27,0.0003178,2]
[319597912,1710885108692,-500.0,0.0003178,2]
[319597913,1710885108702,-38480.53,0.0003178,2]
[319597914,1710885108712,-2988.01,0.0003178,2]
[319597915,1710885108723,-968.19,0.0003178,2]
[319597916,1710885108733,-767.81,0.0003178,2]
[319597917,1710885108742,-3358.0,0.0003178,2]
[319597918,1710885108751,-500.0,0.0003178,2]
[319597919,1710885108761,-500.0,0.0003178,2]
[319597920,1710885108771,-2995.65,0.0003178,2]
[319597921,1710885108781,-500.0,0.0003178,2]
[319597922,1710885108791,-2879.31,0.0003178,2]
[319597923,1710885108801,-3475.26,0.0003178,2]
[319597924,1710885108811,-817.64,0.0003178,2]
[319597925,1710885108821,-626.59,0.0003178,2]
[319597926,1710885108831,-1532.23,0.0003178,2]
[319597927,1710885108840,-500.0,0.0003178,2]
[319597928,1710885108850,-1675.59,0.0003178,2]
[319597929,1710885108860,-1175.56,0.0003178,2]
[319597930,1710885108869,-1109.08,0.0003178,2]
[319597931,1710885108879,-1104.88,0.0003178,2]
[319597932,1710885108889,-1008.18,0.0003178,2]
[319597933,1710885108899,-2383.57,0.0003178,2]
[319597934,1710885108908,-6551.95,0.0003178,2]
[319597935,1710885108917,-20378.39,0.0003178,2]
[319597936,1710885108927,-3428.01,0.0003178,2]
[319597937,1710885108936,-500.0,0.0003178,2]
[319597938,1710885108946,-500.0,0.0003178,2]
[319597939,1710885108956,-500.0,0.0003178,2]
[319597940,1710885108966,-724.41,0.0003178,2]
[319597941,1710885108975,-4023.07,0.0003178,2]
[319597942,1710885108985,-2691.76,0.0003178,2]
[319597943,1710885108995,-500.0,0.0003178,2]
[319597944,1710885109005,-518.98,0.0003178,2]
[319597945,1710885109014,-532.04,0.0003178,2]
[319597946,1710885109024,-3655.41,0.0003178,2]
[319597947,1710885109033,-500.0,0.0003178,2]
[319597948,1710885109043,-3100.4,0.0003178,2]
[319597949,1710885109052,-532.61,0.0003178,2]
[319597950,1710885109061,-1495.58,0.0003178,2]
[319597951,1710885109071,-5255.9,0.0003178,2]
[319597952,1710885109081,-646.23,0.0003178,2]
[319597953,1710885109090,-500.0,0.0003178,2]
[319597954,1710885109101,-500.0,0.0003178,2]
[319597955,1710885109110,-856.3,0.0003178,2]
[319597956,1710885109119,-2848.19,0.0003178,2]
[319597957,1710885109129,-1919.76,0.0003178,2]
[319597958,1710885109139,-500.0,0.0003178,2]
[319597959,1710885109148,-514.35,0.0003178,2]
[319597960,1710885109158,-84885.72,0.0003178,2]
[319597961,1710885109168,-917.99,0.0003178,2]
[319597962,1710885109178,-7528.25,0.0003178,2]
[319597963,1710885109188,-556.06,0.0003178,2]
[319597964,1710885109198,-2075.6,0.0003178,2]
[319597965,1710885109207,-4053.66,0.0003178,2]
[319597966,1710885109218,-500.0,0.0003178,2]
[319597967,1710885109227,-950.92,0.0003178,2]
[319597968,1710885109237,-1498.56,0.0003178,2]
[319597969,1710885109247,-6114.82,0.0003178,2]
[319597970,1710885109256,-500.0,0.0003178,2]
[319597971,1710885109266,-1068.02,0.0003178,2]
[319597972,1710885109276,-1140.75,0.0003178,2]
[319597973,1710885109286,-1363.9,0.0003178,2]
[319597974,1710885109295,-500.0,0.0003178,2]
[319597975,1710885109305,-680.37,0.0003178,2]
[319597976,1710885109314,-500.0,0.0003178,2]
[319597977,1710885109324,-7331.78,0.0003178,2]
[319597978,1710885109334,-500.0,0.0003178,2]
[319597979,1710885109344,-5255.76,0.0003178,2]
[319597980,1710885109355,-6608.67,0.0003178,2]
[319597981,1710885109364,-535.13,0.0003178,2]
[319597982,1710885109374,-1065.89,0.0003178,2]
[319597983,1710885109384,-500.0,0.0003178,2]
[319597984,1710885109394,-2244.41,0.0003178,2]
[319597985,1710885109404,-501.67,0.0003178,2]
[319597986,1710885109414,-12679.11,0.0003178,2]
[319597987,1710885109423,-1134.2,0.0003178,2]
[319597988,1710885109433,-500.0,0.0003178,2]
[319597989,1710885109442,-500.0,0.0003178,2]
[319597990,1710885109453,-500.0,0.0003178,2]
[319597991,1710885109465,-500.0,0.0003178,2]
[319597992,1710885109476,-952.29,0.0003178,2]
[319597993,1710885109485,-5689.03,0.0003178,2]
[319597994,1710885109495,-16057.66,0.0003178,2]
[319597995,1710885109505,-561.90444534,0.0003178,2]
[319597996,1710885109515,-661.71,0.0003178,2]
[319597997,1710885109525,-9318.38,0.0003178,2]
[319597998,1710885109537,-6799.03,0.0003178,2]
[319597999,1710885109546,-4026.73,0.0003178,2]
[319598000,1710885109556,-3035.5,0.0003178,2]
[319598001,1710885109566,-3750.07,0.0003178,2]
[319598002,1710885109576,-935.16,0.0003178,2]
[319598003,1710885109585,-6185.77,0.0003178,2]
[319598004,1710885109597,-1750.15,0.0003178,2]
[319598005,1710885109607,-507.49,0.0003178,2]
[319598006,1710885109616,-500.0,0.0003178,2]
[319598007,1710885109626,-500.0,0.0003178,2]
[319598008,1710885109636,-21984.05,0.0003178,2]
[319598009,1710885109646,-500.0,0.0003178,2]
[319598010,1710885109656,-1656.75,0.0003178,2]
[319598011,1710885109666,-682.19,0.0003178,2]
[319598012,1710885109676,-3232.39,0.0003178,2]
[319598013,1710885109685,-2644.39,0.0003178,2]
[319598014,1710885109695,-4012.77,0.0003178,2]
[319598015,1710885109705,-500.0,0.0003178,2]
[319598016,1710885109715,-5906.29,0.0003178,2]
[319598017,1710885109725,-500.0,0.0003178,2]
[319598018,1710885109734,-500.0,0.0003178,2]
[319598019,1710885109744,-628.01164918,0.0003178,2]
[319598020,1710885109754,-500.0,0.0003178,2]
[319598021,1710885109763,-500.0,0.0003178,2]
[319598022,1710885109773,-1898.34,0.0003178,2]
[319598023,1710885109783,-6356.12,0.0003178,2]
[319598024,1710885109793,-860.9,0.0003178,2]
[319598025,1710885109803,-2450.74,0.0003178,2]
[319598026,1710885109812,-500.0,0.0003178,2]
[319598027,1710885109822,-741.49,0.0003178,2]
[319598028,1710885109831,-500.0,0.0003178,2]
[319598029,1710885109841,-988.62,0.0003178,2]
[319598030,1710885109851,-502.93,0.0003178,2]
[319598031,1710885109861,-3281.78,0.0003178,2]
[319598032,1710885109869,-10393.93,0.0003178,2]
[319598033,1710885109879,-887.69,0.0003178,2]
[319598034,1710885109888,-500.0,0.0003178,2]
[319598035,1710885109898,-2054.31,0.0003178,2]
[319598036,1710885109907,-1073.2,0.0003178,2]
[319598037,1710885109916,-500.0,0.0003178,2]
[319598038,1710885109925,-500.0,0.0003178,2]
[319598039,1710885109934,-500.0,0.0003178,2]
[319598040,1710885109943,-5676.82,0.0003178,2]
[319598041,1710885109953,-500.0,0.0003178,2]
[319598042,1710885109962,-2336.1,0.0003178,2]
[319598043,1710885109971,-784.81,0.0003178,2]
[319598044,1710885109981,-500.0,0.0003178,2]
[319598045,1710885109990,-2928.09,0.0003178,2]
[319598046,1710885110000,-958.78,0.0003178,2]
[319598047,1710885110010,-5305.03,0.0003178,2]
[319598048,1710885110020,-12462.52,0.0003178,2]
[319598049,1710885110030,-742.85,0.0003178,2]
[319598050,1710885110040,-6273.21,0.0003178,2]
[319598051,1710885110049,-500.0,0.0003178,2]
[319598052,1710885110059,-3248.64,0.0003178,2]
[319598053,1710885110069,-500.0,0.0003178,2]
[319598054,1710885110079,-8000.71,0.0003178,2]
[319598055,1710885110088,-500.0,0.0003178,2]
[319598056,1710885110099,-9028.78,0.0003178,2]
[319598057,1710885110109,-7424.85,0.0003178,2]
[319598058,1710885110119,-7152.27,0.0003178,2]
[319598059,1710885110131,-603.25,0.0003178,2]
[319598060,1710885110141,-920.58,0.0003178,2]
[319598061,1710885110152,-11402.88,0.0003178,2]
[319598062,1710885110162,-5180.59,0.0003178,2]
[319598063,1710885110173,-862.02,0.0003178,2]
[319598064,1710885110184,-500.0,0.0003178,2]
[319598065,1710885110195,-1058.28,0.0003178,2]
[319598066,1710885110205,-6676.62,0.0003178,2]
[319598067,1710885110216,-50748.97,0.0003178,2]
[319598068,1710885110226,-12563.76,0.0003178,2]
[319598069,1710885110235,-4392.06,0.0003178,2]
[319598070,1710885110245,-500.0,0.0003178,2]
[319598071,1710885110256,-500.0,0.0003178,2]
[319598072,1710885110266,-947.45,0.0003178,2]
[319598073,1710885110276,-994.47,0.0003178,2]
[319598074,1710885110285,-6289.47,0.0003178,2]
[319598075,1710885110295,-1127.56,0.0003178,2]
[319598076,1710885110305,-500.0,0.0003178,2]
[319598077,1710885110314,-500.0,0.0003178,2]
[319598078,1710885110324,-1554.32,0.0003178,2]
[319598079,1710885110335,-1563.9,0.0003178,2]
[319598080,1710885110348,-2538.59,0.0003178,2]
[319598081,1710885110359,-9279.39,0.0003178,2]
[319598082,1710885110369,-2973.35,0.0003178,2]
[319598083,1710885110379,-500.0,0.0003178,2]
[319598084,1710885110389,-1071.73,0.0003178,2]
[319598085,1710885110400,-1557.91,0.0003178,2]
[319598086,1710885110411,-500.0,0.0003178,2]
[319598087,1710885110421,-921.84,0.0003178,2]
[319598088,1710885110431,-1497.67,0.0003178,2]
[319598089,1710885110441,-5460.3,0.0003178,2]
[319598090,1710885110452,-549.68,0.0003178,2]
[319598091,1710885110464,-866.95,0.0003178,2]
[319598092,1710885110475,-500.0,0.0003178,2]
[319598093,1710885110485,-500.0,0.0003178,2]
[319598094,1710885110496,-23885.26,0.0003178,2]
[319598095,1710885110507,-6038.59,0.0003178,2]
[319598096,1710885110516,-34338.3,0.0003178,2]
[319598097,1710885110526,-2241.19,0.0003178,2]
[319598098,1710885110536,-870.15,0.0003178,2]
[319598099,1710885110548,-1003.35,0.0003178,2]
[319598100,1710885110558,-500.0,0.0003178,2]
[319598101,1710885110567,-5507.6,0.0003178,2]
[319598102,1710885110577,-5378.59,0.0003178,2]
[319598103,1710885110588,-615.59,0.0003178,2]
[319598104,1710885110599,-500.0,0.0003178,2]
[319598105,1710885110609,-681.39,0.0003178,2]
[319598106,1710885110620,-3623.08,0.0003178,2]
[319598107,1710885110630,-659.74,0.0003178,2]
[319598108,1710885110639,-500.0,0.0003178,2]
[319598109,1710885110650,-1648.34,0.0003178,2]
[319598110,1710885110660,-500.0,0.0003178,2]
[319598111,1710885110671,-7204.29,0.0003178,2]
[319598112,1710885110681,-500.0,0.0003178,2]
[319598113,1710885110690,-5688.06,0.0003178,2]
[319598114,1710885110701,-976.18,0.0003178,2]
[319598115,1710885110711,-1912.73,0.0003178,2]
[319598116,1710885110721,-3082.4,0.0003178,2]
[319598117,1710885110731,-2522.27,0.0003178,2]
[319598118,1710885110869,-6424.1,0.0003178,2]
[319598119,1710885110880,-1570.96,0.0003178,2]
[319598120,1710885110890,-1409.47,0.0003178,2]
[319598121,1710885110900,-500.0,0.0003178,2]
[319598122,1710885110909,-2703.38,0.0003178,2]
[319598123,1710885110919,-10351.23,0.0003178,2]
[319598124,1710885110929,-500.0,0.0003178,2]
[319598125,1710885110939,-723.42,0.0003178,2]
[319598126,1710885110949,-19207.21,0.0003178,2]
[319598127,1710885110959,-3159.85,0.0003178,2]
[319598128,1710885110969,-3910.17,0.0003178,2]
[319598129,1710885110979,-989.66,0.0003178,2]
[319598130,1710885110989,-1575.99,0.0003178,2]
[319598131,1710885110999,-500.0,0.0003178,2]
[319598132,1710885111009,-2518.49,0.0003178,2]
[319598133,1710885111019,-500.0,0.0003178,2]
[319598134,1710885111029,-500.0,0.0003178,2]
[319598135,1710885111038,-602.98,0.0003178,2]
[319598136,1710885111048,-2902.62,0.0003178,2]
[319598137,1710885111058,-1081.46,0.0003178,2]
[319598138,1710885111068,-228.59807059,0.0003178,2]
[319598139,1710885111077,-996.99,0.0003178,2]
[319598140,1710885111087,-11316.17,0.0003178,2]
[319598141,1710885111097,-722.94,0.0003178,2]
[319598142,1710885111108,-21059.27,0.0003178,2]
[319598143,1710885111119,-1144.28,0.0003178,2]
[319598144,1710885111129,-500.0,0.0003178,2]
[319598145,1710885111139,-592.77,0.0003178,2]
[319598146,1710885111149,-3248.34,0.0003178,2]
[319598147,1710885111159,-611.45,0.0003178,2]
[319598148,1710885111169,-500.0,0.0003178,2]
[319598149,1710885111179,-500.0,0.0003178,2]
[319598150,1710885111188,-1214.02,0.0003178,2]
[319598151,1710885111199,-5044.94,0.0003178,2]
[319598152,1710885111208,-500.0,0.0003178,2]
[319598153,1710885111219,-500.0,0.0003178,2]
[319598154,1710885111228,-6225.21,0.0003178,2]
[319598155,1710885111239,-856.7,0.0003178,2]
[319598156,1710885111249,-608.72,0.0003178,2]
[319598157,1710885111259,-500.0,0.0003178,2]
[319598158,1710885111269,-1511.11,0.0003178,2]
[319598159,1710885111279,-1279.36,0.0003178,2]
[319598160,1710885111289,-8737.55,0.0003178,2]
[319598161,1710885111299,-11752.03,0.0003178,2]
[319598162,1710885111310,-4482.5,0.0003178,2]
[319598163,1710885111320,-500.0,0.0003178,2]
[319598164,1710885111330,-1788.46,0.0003178,2]
[319598165,1710885111340,-5316.22,0.0003178,2]
[319598166,1710885111351,-500.0,0.0003178,2]
[319598167,1710885111362,-1321.67,0.0003178,2]
[319598168,1710885111373,-22991.35,0.0003178,2]
[319598169,1710885111383,-518.08,0.0003178,2]
[319598170,1710885111393,-500.0,0.0003178,2]
[319598171,1710885111403,-1177.76,0.0003178,2]
[319598172,1710885111414,-505.75,0.0003178,2]
[319598173,1710885111424,-214.65793645,0.0003178,2]
[319598174,1710885111434,-1429.54,0.0003178,2]
[319598175,1710885111445,-2886.03,0.0003178,2]
[319598176,1710885111455,-500.0,0.0003178,2]
[319598177,1710885111469,-3473.42,0.0003178,2]
[319598178,1710885111480,-20562.17,0.0003178,2]
[319598179,1710885111490,-4026.93,0.0003178,2]
[319598180,1710885111500,-500.0,0.0003178,2]
[319598181,1710885111511,-805.12,0.0003178,2]
[319598182,1710885111521,-981.11,0.0003178,2]
[319598183,1710885111531,-877.4,0.0003178,2]
[319598184,1710885111544,-500.0,0.0003178,2]
[319598185,1710885111555,-1121.88,0.0003178,2]
[319598186,1710885111565,-836.09,0.0003178,2]
[319598187,1710885111575,-12965.17,0.0003178,2]
[319598188,1710885111585,-8047.18,0.0003178,2]
[319598189,1710885111595,-4640.74,0.0003178,2]
[319598190,1710885111605,-6661.58,0.0003178,2]
[319598191,1710885111615,-500.0,0.0003178,2]
[319598192,1710885111624,-720.32,0.0003178,2]
[319598193,1710885111634,-500.0,0.0003178,2]
[319598194,1710885111643,-3306.12,0.0003178,2]
[319598195,1710885111653,-1406.25,0.0003178,2]
[319598196,1710885111663,-603.58,0.0003178,2]
[319598197,1710885111673,-500.0,0.0003178,2]
[319598198,1710885111683,-500.0,0.0003178,2]
[319598199,1710885111694,-6333.98,0.0003178,2]
[319598200,1710885111704,-1438.11,0.0003178,2]
[319598201,1710885111762,-26854.72,0.0003178,2]
[319598202,1710885111773,-2692.37,0.0003178,2]
[319598203,1710885111782,-614.48,0.0003178,2]
[319598204,1710885111792,-1298.71,0.0003178,2]
[319598205,1710885111801,-2847.31,0.0003178,2]
[319598206,1710885111811,-1953.31,0.0003178,2]
[319598207,1710885111820,-500.0,0.0003178,2]
[319598208,1710885111829,-521.8,0.0003178,2]
[319598209,1710885111839,-972.96,0.0003178,2]
[319598210,1710885111848,-500.0,0.0003178,2]
[319598211,1710885111859,-599.79,0.0003178,2]
[319598212,1710885111869,-1902.54,0.0003178,2]
[319598213,1710885111877,-1686.82,0.0003178,2]
[319598214,1710885111887,-673.97,0.0003178,2]
[319598215,1710885111896,-649.62,0.0003178,2]
[319598216,1710885111906,-26670.31,0.0003178,2]
[319598217,1710885111915,-5843.77,0.0003178,2]
[319598218,1710885111925,-1828.95,0.0003178,2]
[319598219,1710885111934,-691.9,0.0003178,2]
[319598220,1710885111944,-1109.32,0.0003178,2]
[319598221,1710885111954,-513.49643,0.0003178,7]
[319598222,1710885111963,-1199.84,0.0003178,2]
[319598223,1710885111973,-1216.0,0.0003178,2]
[319598224,1710885111983,-513.49643,0.0003178,7]
[319598225,1710885111993,-24409.1954236,0.00031786,2]
[319598226,1710885112002,-7900.2697105,0.00031786,2]
[319598227,1710885112012,-2474.3481121,0.00031786,2]
[319598228,1710885112021,-2632.3395291,0.00031786,2]
[319598229,1710885112030,-222.032006,0.00031789,3]
[319598230,1710885112040,-222.032006,0.00031789,4]
[319598231,1710885112050,-97132.5182434,0.00031808,2]
[319598232,1710885112059,-6447.0755401,0.00031829,3]
[319598233,1710885112069,-5036.03265238,0.00031888,7]
[319598234,1710885112078,-6447.0755401,0.00032029,3]
[319598235,1710885112088,-387.98,0.0003204,2]
[319598236,1710885112097,-150.0,0.00032053,2]
[319598237,1710885112107,-150.0,0.00032053,2]
[319598238,1710885112117,-1041.1,0.00032054,2]
[319598239,1710885112126,-905.92,0.00032054,2]
[319598240,1710885112136,-760.8,0.00032054,2]
[319598241,1710885112145,-500.0,0.00032054,2]
[319598242,1710885112154,-500.0,0.00032054,2]
[319598243,1710885112164,-918.16,0.00032054,2]
[319598244,1710885112174,-1354.5,0.00032054,2]
[319598245,1710885112184,-376.29489054,0.00032054,2]
[319598246,1710885112195,-500.0,0.00032054,2]
[319598247,1710885112204,-150.0,0.00032054,2]
[319598248,1710885112213,-563.69,0.00032054,2]
[319598249,1710885112223,-553.29,0.00032054,2]
[319598250,1710885112232,-500.0,0.00032054,2]
[319598251,1710885112242,-500.0,0.00032054,2]
[319598252,1710885112251,-500.0,0.00032054,2]
[319598253,1710885112262,-500.0,0.00032054,2]
[319598254,1710885112271,-500.0,0.00032054,2]
[319598255,1710885112281,-576.34,0.00032054,2]
[319598256,1710885112291,-500.0,0.00032054,2]
[319598257,1710885112301,-500.0,0.00032054,2]
[319598258,1710885112311,-628.41,0.00032054,2]
[319598259,1710885112321,-500.0,0.00032054,2]
[319598260,1710885112331,-500.0,0.00032054,2]
[319598261,1710885112341,-964.89,0.00032054,2]
[319598262,1710885112352,-620.13,0.00032054,2]
[319598263,1710885112361,-786.01,0.00032054,2]
[319598264,1710885112371,-865.28,0.00032054,2]
[319598265,1710885112380,-564.61,0.00032054,2]
[319598266,1710885112391,-500.0,0.00032054,2]
[319598267,1710885112400,-500.0,0.00032054,2]
[319598268,1710885112411,-500.0,0.00032054,2]
[319598269,1710885112421,-500.0,0.00032054,2]
[319598270,1710885112431,-529.43,0.00032054,2]
[319598271,1710885112440,-618.58,0.00032054,2]
[319598272,1710885112450,-563.52,0.00032054,2]
[319598273,1710885112464,-500.0,0.00032054,2]
[319598274,1710885112474,-2015.12,0.00032054,2]
[319598275,1710885112484,-605.22735861,0.00032054,2]
[319598276,1710885112494,-500.0,0.00032054,2]
[319598277,1710885112505,-631.9,0.00032054,2]
[319598278,1710885112515,-681.13,0.00032054,2]
[319598279,1710885112525,-1086.99,0.00032054,2]
[319598280,1710885112536,-500.0,0.00032054,2]
[319598281,1710885112546,-500.0,0.00032054,2]
[319598282,1710885112556,-500.0,0.00032054,2]
[319598283,1710885112565,-500.0,0.00032054,2]
[319598284,1710885112574,-652.31,0.00032054,2]
[319598285,1710885112583,-1320.6,0.00032054,2]
[319598286,1710885112594,-1250.92,0.00032054,2]
[319598287,1710885112604,-1120.04,0.00032054,2]
[319598288,1710885112613,-500.0,0.00032054,2]
[319598289,1710885112624,-510.25,0.00032054,2]
[319598290,1710885112634,-921.3,0.00032054,2]
[319598291,1710885112643,-1043.25,0.00032054,2]
[319598292,1710885112653,-1041.72,0.00032054,2]
[319598293,1710885112662,-500.0,0.00032054,2]
[319598294,1710885112672,-535.44,0.00032054,2]
[319598295,1710885112682,-500.0,0.00032054,2]
[319598296,1710885112692,-500.0,0.00032054,2]
[319598297,1710885112701,-500.0,0.00032054,2]
[319598298,1710885112711,-500.0,0.00032054,2]
[319598299,1710885112721,-500.0,0.00032054,2]
[319598300,1710885112730,-957.02,0.00032054,2]
[319598301,1710885112738,-549.6,0.00032054,2]
[319598302,1710885112747,-500.0,0.00032054,2]
[319598303,1710885112756,-500.0,0.00032054,2]
[319598304,1710885112765,-546.14,0.00032054,2]
[319598305,1710885112775,-500.0,0.00032054,2]
[319598306,1710885112784,-500.0,0.00032054,2]
[319598307,1710885112793,-983.01,0.00032054,2]
[319598308,1710885112803,-500.0,0.00032054,2]
[319598309,1710885112812,-500.0,0.00032054,2]
[319598310,1710885112821,-500.0,0.00032054,2]
[319598311,1710885112830,-500.0,0.00032054,2]
[319598312,1710885112840,-502.25,0.00032054,2]
[319598313,1710885112849,-583.52,0.00032054,2]
[319598314,1710885112860,-500.0,0.00032054,2]